[Event "1.Frauenbundesliga 2018-19"]
[Site "Germany"]
[Date "2019.01.13"]
[Round "6"]
[White "Schenk, Stefanie"]
[Black "Kushka, Alena"]
[Result "0-1"]
[ECO "A38"]
[WhiteElo "2090"]
[BlackElo "2165"]
[Annotator "NA"]
[PlyCount "113"]
[EventDate "2018.10.27"]
[EventType "team-tourn"]
[EventCountry "GER"]
[SourceTitle "playchess.com"]
[Source "ChessBase"]
[SourceQuality "1"]
[TimeControl "40/5400+30:1800+30"]

1. c4 {[%emt 0:00:00]} c5 {[%emt 0:00:00]} 2. Nc3 {[%emt 0:00:00]} Nc6 {[%emt 0:00:00]} 3. g3 {[%emt 0:00:00]} g6 {[%emt 0:00:00]} 4. Bg2 {[%emt 0:00:00]} Bg7 {[%emt 0:00:08]} 5. Nf3 {[%emt 0:00:23]} Nf6 {[%emt 0:00:16]} 6. O-O {[%emt 0:00:06]} O-O {[%emt 0:00:14]} 7. d3 {[%emt 0:03:01]} d5 {[%emt 0:03:31]} 8. cxd5 {[%emt 0:06:03]} Nxd5 {[%emt 0:00:08]} 9. Nxd5 {[%emt 0:06:46]} Qxd5 {[%emt 0:00:08]} 10. Nd2 {[%emt 0:04:16]} Qh5 {[%emt 0:08:39]} 11. Nf3 {[%emt 0:17:08]} Bh3 {[%emt 0:09:47]} 12. Bxh3 {[%emt 0:12:00]} Qxh3 {[%emt 0:00:05]} 13. Qb3 {[%emt 0:01:25]} b6 {[%emt 0:05:23]} 14. Bd2 {[%emt 0:05:11]} Rad8 {[%emt 0:04:14]} 15. Bc3 {[%emt 0:01:57]} Bxc3 {[%emt 0:10:26]} 16. bxc3 {[%emt 0:02:54]} h6 {[%emt 0:03:19]} 17. Qa4 {[%emt 0:01:11]} Rd6 {[%emt 0:02:51]} 18. Qh4 {[%emt 0:09:01]} Qxh4 {[%emt 0:00:13]} 19. Nxh4 {[%emt 0:00:20]} Rfd8 {[%emt 0:08:58]} 20. Nf3 {[%emt 0:01:41]} e5 {[%emt 0:02:03]} 21. Nd2 {[%emt 0:02:31]} f5 {[%emt 0:03:08]} 22. Nc4 {[%emt 0:02:42]} Re6 {[%emt 0:01:51]} 23. Rfd1 {[%emt 0:04:20]} Kf7 {[%emt 0:07:31]} 24. a4 {[%emt 0:01:28]} Re7 {[%emt 0:08:31]} 25. Kf1 {[%emt 0:02:31]} Red7 {[%emt 0:02:45]} 26. Ke1 {[%emt 0:01:03]} Ke6 {[%emt 0:00:43]} 27. Ne3 {[%emt 0:00:24]} e4 {[%emt 0:07:00]} 28. dxe4 {[%emt 0:00:31]} Rxd1+ {[%emt 0:00:46]} 29. Rxd1 {[%emt 0:00:04]} Rxd1+ {[%emt 0:00:06]} 30. Kxd1 {[%emt 0:00:13]} fxe4 {[%emt 0:00:13]} 31. Kc2 {[%emt 0:00:33]} a6 {[%emt 0:02:18]} 32. h4 {[%emt 0:00:22]} b5 {[%emt 0:00:49]} 33. axb5 {[%emt 0:00:04]} axb5 {[%emt 0:00:05]} 34. Ng4 {[%emt 0:02:26]} h5 {[%emt 0:00:09]} 35. Ne3 {[%emt 0:00:06]} Ne5 {[%emt 0:02:46]} 36. Kd2 {[%emt 0:02:17]} Ng4 {[%emt 0:03:01]} 37. f3 {[%emt 0:04:31]} exf3 {[%emt 0:02:45]} 38. exf3 {[%emt 0:00:13]} Ne5 {[%emt 0:01:04]} 39. Ke2 {[%emt 0:00:34]} Nc6 {[%emt 0:02:38]} 40. Kd3 {[%emt 0:04:13]} Ke5 {[%emt 0:00:40]} 41. Nc2 {[%emt 0:09:17]} Kd5 {[%emt 0:16:00]} 42. Ne3+ {[%emt 0:02:05]} Ke5 {[%emt 0:00:42]} 43. Nc2 {[%emt 0:00:05]} Ne7 {[%emt 0:06:14]} 44. Ne3 {[%emt 0:03:03]} Nf5 {[%emt 0:03:24]} 45. Nf1 {[%emt 0:02:50]} Kd5 {[%emt 0:01:04]} 46. Ne3+ {[%emt 0:07:10]} Nxe3 {[%emt 0:00:23]} 47. Kxe3 {[%emt 0:00:01]} Kc4 {[%emt 0:01:03]} 48. Kd2 {[%emt 0:00:17]} b4 {[%emt 0:02:31]} 49. cxb4 {[%emt 0:00:31]} cxb4 {[%emt 0:00:07]} 50. Kc2 {[%emt 0:01:30]} Kd4 {[%emt 0:00:20]} 51. g4 {[%emt 0:00:51]} Ke3 {[%emt 0:00:18]} 52. gxh5 {[%emt 0:00:09]} gxh5 {[%emt 0:00:05]} 53. Kb3 {[%emt 0:00:13]} Kxf3 {[%emt 0:00:10]} 54. Kxb4 {[%emt 0:00:04]} Kg4 {[%emt 0:00:08]} 55. Kc3 {[%emt 0:00:06]} Kxh4 {[%emt 0:00:06]} 56. Kd3 {[%emt 0:00:04]} Kg3 {[%emt 0:00:11]} 57. Kd4 0-1

[Event "1.Frauenbundesliga 2018-19"]
[Site "Germany"]
[Date "2019.01.13"]
[Round "6"]
[White "Mar, Karmen"]
[Black "Mayrhuber, Nikola"]
[Result "1-0"]
[ECO "B13"]
[WhiteElo "2063"]
[BlackElo "1984"]
[Annotator "NA"]
[PlyCount "147"]
[EventDate "2018.10.27"]
[EventType "team-tourn"]
[EventCountry "GER"]
[SourceTitle "playchess.com"]
[Source "ChessBase"]
[SourceQuality "1"]
[TimeControl "40/5400+30:1800+30"]

1. e4 {[%emt 0:00:00]} c6 {[%emt 0:00:00]} 2. d4 {[%emt 0:00:00]} d5 {[%emt 0:00:00]} 3. exd5 {[%emt 0:00:21]} cxd5 {[%emt 0:00:00]} 4. Bd3 {[%emt 0:00:16]} Nc6 {[%emt 0:00:20]} 5. c3 {[%emt 0:00:12]} Qc7 {[%emt 0:00:29]} 6. Ne2 {[%emt 0:00:48]} Bg4 {[%emt 0:00:56]} 7. O-O {[%emt 0:01:11]} e6 {[%emt 0:19:18]} 8. Qe1 {[%emt 0:01:26]} Bxe2 {[%emt 0:04:26]} 9. Qxe2 {[%emt 0:02:14]} Bd6 {[%emt 0:00:13]} 10. g3 {[%emt 0:16:27]} h5 {[%emt 0:06:14]} 11. Bg5 {[%emt 0:06:17]} Nf6 {[%emt 0:07:37]} 12. Nd2 {[%emt 0:07:28]} O-O-O {[%emt 0:16:09]} 13. Nf3 {[%emt 0:04:41]} Kb8 {[%emt 0:08:34]} 14. Rfe1 {[%emt 0:08:59]} Rde8 {[%emt 0:01:45]} 15. Rac1 {[%emt 0:20:29]} e5 {[%emt 0:02:53]} 16. dxe5 {[%emt 0:04:31]} Nxe5 {[%emt 0:00:06]} 17. Nxe5 {[%emt 0:02:27]} Bxe5 {[%emt 0:06:24]} 18. Qf3 {[%emt 0:01:46]} Ng4 {[%emt 0:09:00]} 19. Bf5 {[%emt 0:05:39]} f6 {[%emt 0:01:19]} 20. Bd2 {[%emt 0:00:43]} g6 {[%emt 0:07:25]} 21. Bxg4 {[%emt 0:09:30]} hxg4 {[%emt 0:00:05]} 22. Qxg4 {[%emt 0:00:30]} Qh7 {[%emt 0:00:30]} 23. h4 {[%emt 0:02:53]} g5 {[%emt 0:00:44]} 24. h5 {[%emt 0:00:19]} Qxh5 {[%emt 0:00:59]} 25. Qxh5 {[%emt 0:00:07]} Rxh5 {[%emt 0:00:04]} 26. Kg2 {[%emt 0:01:01]} g4 {[%emt 0:02:51]} 27. Rh1 {[%emt 0:00:52]} Reh8 {[%emt 0:00:16]} 28. Rxh5 {[%emt 0:00:27]} Rxh5 {[%emt 0:00:04]} 29. Be3 {[%emt 0:00:16]} b6 {[%emt 0:01:18]} 30. Rd1 {[%emt 0:00:13]} Bd6 {[%emt 0:01:33]} 31. Rd4 {[%emt 0:00:36]} Bc5 {[%emt 0:02:37]} 32. Rxg4 {[%emt 0:00:14]} Bxe3 {[%emt 0:00:08]} 33. fxe3 {[%emt 0:00:11]} Re5 {[%emt 0:00:30]} 34. Kf3 {[%emt 0:00:27]} a5 {[%emt 0:01:05]} 35. Rg7 {[%emt 0:02:13]} Kc8 {[%emt 0:00:24]} 36. g4 {[%emt 0:00:20]} b5 {[%emt 0:01:01]} 37. Rf7 {[%emt 0:00:41]} Re6 {[%emt 0:00:22]} 38. Kf4 {[%emt 0:00:25]} b4 {[%emt 0:00:18]} 39. Ra7 {[%emt 0:01:26]} bxc3 {[%emt 0:00:33]} 40. bxc3 {[%emt 0:00:12]} Re4+ {[%emt 0:00:47]} 41. Kf5 {[%emt 0:03:58]} a4 {[%emt 0:05:23]} 42. Ra5 {[%emt 0:08:26]} Rxe3 {[%emt 0:06:19]} 43. Rxa4 {[%emt 0:00:52]} Rxc3 {[%emt 0:05:00]} 44. Rd4 {[%emt 0:07:00]} Rf3+ {[%emt 0:04:36]} 45. Ke6 {[%emt 0:02:11]} Kd8 {[%emt 0:04:18]} 46. Rxd5+ {[%emt 0:01:11]} Ke8 {[%emt 0:00:17]} 47. Ra5 {[%emt 0:05:23]} Kf8 {[%emt 0:00:55]} 48. Rf5 {[%emt 0:00:18]} Rg3 {[%emt 0:00:42]} 49. Rxf6+ {[%emt 0:00:42]} Kg7 {[%emt 0:00:06]} 50. Rf4 {[%emt 0:00:30]} Ra3 {[%emt 0:00:53]} 51. Rf2 {[%emt 0:00:27]} Kg6 {[%emt 0:02:02]} 52. Rg2 {[%emt 0:01:26]} Kg5 {[%emt 0:02:40]} 53. Ke5 {[%emt 0:00:37]} Ra5+ {[%emt 0:00:31]} 54. Kd4 {[%emt 0:00:23]} Ra4+ {[%emt 0:00:44]} 55. Kc5 {[%emt 0:00:22]} Ra8 {[%emt 0:01:53]} 56. Kb4 {[%emt 0:02:56]} Rb8+ {[%emt 0:00:07]} 57. Kc3 {[%emt 0:00:36]} Rc8+ {[%emt 0:00:04]} 58. Kb2 {[%emt 0:00:44]} Rb8+ {[%emt 0:00:04]} 59. Kc1 {[%emt 0:00:36]} Rc8+ {[%emt 0:00:09]} 60. Kb1 {[%emt 0:00:19]} Rb8+ {[%emt 0:00:08]} 61. Ka1 {[%emt 0:00:21]} Ra8 {[%emt 0:02:08]} 62. Kb1 {[%emt 0:01:41]} Ra3 {[%emt 0:01:10]} 63. Kb2 {[%emt 0:00:24]} Re3 {[%emt 0:00:09]} 64. a4 {[%emt 0:00:36]} Rd3 {[%emt 0:00:30]} 65. Rg1 {[%emt 0:00:33]} Re3 {[%emt 0:00:50]} 66. a5 {[%emt 0:00:35]} Re5 {[%emt 0:00:17]} 67. Ra1 {[%emt 0:00:50]} Kxg4 {[%emt 0:00:45]} 68. a6 {[%emt 0:00:13]} Re8 {[%emt 0:00:11]} 69. a7 {[%emt 0:00:27]} Ra8 {[%emt 0:00:06]} 70. Kc3 {[%emt 0:00:23]} Kf5 {[%emt 0:01:02]} 71. Kd4 {[%emt 0:00:11]} Ke6 {[%emt 0:01:03]} 72. Kc5 {[%emt 0:00:07]} Kd7 {[%emt 0:00:41]} 73. Kb6 {[%emt 0:00:08]} Kc8 {[%emt 0:00:26]} 74. Rd1 {[%emt 0:00:37]} 1-0

[Event "1.Frauenbundesliga 2018-19"]
[Site "Germany"]
[Date "2019.01.13"]
[Round "6"]
[White "Barpiyeva, Gulsana"]
[Black "Ankerst, Milka"]
[Result "1/2-1/2"]
[ECO "A05"]
[WhiteElo "2035"]
[BlackElo "2009"]
[Annotator "NA"]
[PlyCount "93"]
[EventDate "2018.10.27"]
[EventType "team-tourn"]
[EventCountry "GER"]
[SourceTitle "playchess.com"]
[Source "ChessBase"]
[SourceQuality "1"]
[TimeControl "40/5400+30:1800+30"]

1. Nf3 {[%emt 0:00:00]} Nf6 {[%emt 0:00:00]} 2. c4 {[%emt 0:00:00]} e6 {[%emt 0:00:08]} 3. d4 {[%emt 0:01:50]} d5 {[%emt 0:00:56]} 4. e3 {[%emt 0:01:04]} Be7 {[%emt 0:02:05]} 5. Nc3 {[%emt 0:00:18]} O-O {[%emt 0:00:57]} 6. Bd3 {[%emt 0:00:46]} dxc4 {[%emt 0:01:00]} 7. Bxc4 {[%emt 0:00:09]} c5 {[%emt 0:00:59]} 8. O-O {[%emt 0:00:26]} a6 {[%emt 0:01:04]} 9. a3 {[%emt 0:07:23]} Nc6 {[%emt 0:07:14]} 10. dxc5 {[%emt 0:06:17]} Bxc5 {[%emt 0:00:58]} 11. b4 {[%emt 0:00:56]} Be7 {[%emt 0:01:04]} 12. Qe2 {[%emt 0:00:36]} Qc7 {[%emt 0:07:25]} 13. Bb2 {[%emt 0:02:05]} b5 {[%emt 0:02:26]} 14. Bb3 {[%emt 0:00:49]} Bb7 {[%emt 0:01:06]} 15. Rac1 {[%emt 0:02:03]} Rad8 {[%emt 0:06:47]} 16. Ng5 {[%emt 0:12:54]} h6 {[%emt 0:05:18]} 17. Nge4 {[%emt 0:02:36]} Qb6 {[%emt 0:01:23]} 18. Nc5 {[%emt 0:09:33]} Bxc5 {[%emt 0:06:26]} 19. bxc5 {[%emt 0:00:07]} Qc7 {[%emt 0:00:34]} 20. Na2 {[%emt 0:02:23]} Qe7 {[%emt 0:00:29]} 21. Nb4 {[%emt 0:05:08]} Rd7 {[%emt 0:07:55]} 22. f3 {[%emt 0:08:31]} Rfd8 {[%emt 0:01:32]} 23. Bc3 {[%emt 0:02:09]} Ne8 {[%emt 0:05:42]} 24. Ba2 {[%emt 0:03:15]} Nc7 {[%emt 0:06:27]} 25. Bb1 {[%emt 0:07:02]} Nd5 {[%emt 0:05:22]} 26. Nxd5 {[%emt 0:04:01]} Rxd5 {[%emt 0:00:30]} 27. Qc2 {[%emt 0:00:23]} f5 {[%emt 0:01:44]} 28. Bb2 {[%emt 0:05:19]} Rd2 {[%emt 0:00:55]} 29. Qc3 {[%emt 0:00:55]} R8d7 {[%emt 0:03:30]} 30. Rf2 {[%emt 0:03:10]} Rd1+ {[%emt 0:04:35]} 31. Rxd1 {[%emt 0:00:27]} Rxd1+ {[%emt 0:00:03]} 32. Rf1 {[%emt 0:00:13]} Rd5 {[%emt 0:01:45]} 33. Rc1 {[%emt 0:01:17]} Bc8 {[%emt 0:02:40]} 34. e4 {[%emt 0:01:11]} Rd4 {[%emt 0:03:07]} 35. Qe3 {[%emt 0:02:51]} Rd8 {[%emt 0:04:28]} 36. Ba2 {[%emt 0:00:34]} fxe4 {[%emt 0:02:05]} 37. Qxe4 {[%emt 0:00:37]} Qd7 {[%emt 0:01:42]} 38. Bb1 {[%emt 0:01:41]} Nd4 {[%emt 0:01:01]} 39. Re1 {[%emt 0:03:13]} Nf5 {[%emt 0:02:09]} 40. Ba2 {[%emt 0:02:43]} Nd4 {[%emt 0:01:39]} 41. Bxd4 {[%emt 0:05:21]} Qxd4+ {[%emt 0:00:32]} 42. Qxd4 {[%emt 0:00:31]} Rxd4 {[%emt 0:00:34]} 43. Bxe6+ {[%emt 0:00:19]} Bxe6 {[%emt 0:01:08]} 44. Rxe6 {[%emt 0:00:02]} Rc4 {[%emt 0:00:28]} 45. Rxa6 {[%emt 0:01:13]} Rxc5 {[%emt 0:00:18]} 46. Ra5 {[%emt 0:00:37]} Rc3 {[%emt 0:00:13]} 47. Rxb5 {[%emt 0:00:32]} 1/2-1/2

[Event "1.Frauenbundesliga 2018-19"]
[Site "Germany"]
[Date "2019.01.13"]
[Round "6"]
[White "Spiel, Marianne"]
[Black "Froehlich-Dill, Astrid"]
[Result "1-0"]
[ECO "B46"]
[WhiteElo "1896"]
[BlackElo "1792"]
[Annotator "NA"]
[PlyCount "107"]
[EventDate "2018.10.27"]
[EventType "team-tourn"]
[EventCountry "GER"]
[SourceTitle "playchess.com"]
[Source "ChessBase"]
[SourceQuality "1"]
[TimeControl "40/5400+30:1800+30"]

1. e4 {[%emt 0:00:00]} c5 {[%emt 0:02:12]} 2. Nf3 {[%emt 0:00:00]} Nc6 {[%emt 0:00:18]} 3. d4 {[%emt 0:00:00]} cxd4 {[%emt 0:00:34]} 4. Nxd4 {[%emt 0:00:18]} e6 {[%emt 0:01:35]} 5. Nc3 {[%emt 0:06:27]} a6 {[%emt 0:02:34]} 6. Be3 {[%emt 0:03:44]} Bb4 {[%emt 0:07:41]} 7. Qd2 {[%emt 0:04:34]} Nf6 {[%emt 0:07:01]} 8. f3 {[%emt 0:00:10]} Ne5 {[%emt 0:06:56]} 9. a3 {[%emt 0:07:43]} Be7 {[%emt 0:05:34]} 10. Nb3 {[%emt 0:07:33]} b5 {[%emt 0:04:40]} 11. O-O-O {[%emt 0:07:55]} O-O {[%emt 0:22:49]} 12. Kb1 {[%emt 0:16:15]} Nc4 {[%emt 0:04:02]} 13. Bxc4 {[%emt 0:01:52]} bxc4 {[%emt 0:00:07]} 14. Nc1 {[%emt 0:02:54]} Qc7 {[%emt 0:08:19]} 15. N1e2 {[%emt 0:04:03]} Rb8 {[%emt 0:02:25]} 16. Ka1 {[%emt 0:04:20]} Qa5 {[%emt 0:05:22]} 17. Nd5 {[%emt 0:02:46]} Qd8 {[%emt 0:07:09]} 18. Bf4 {[%emt 0:03:59]} exd5 {[%emt 0:03:29]} 19. Bxb8 {[%emt 0:00:42]} dxe4 {[%emt 0:01:17]} 20. Bd6 {[%emt 0:02:49]} Re8 {[%emt 0:02:21]} 21. Bxe7 {[%emt 0:02:49]} Rxe7 {[%emt 0:00:19]} 22. Ng3 {[%emt 0:01:22]} e3 {[%emt 0:01:19]} 23. Qd4 {[%emt 0:00:14]} Qe8 {[%emt 0:01:07]} 24. Rhe1 {[%emt 0:01:09]} d5 {[%emt 0:00:34]} 25. Re2 {[%emt 0:01:19]} h6 {[%emt 0:00:54]} 26. Rde1 {[%emt 0:00:38]} Qa4 {[%emt 0:00:55]} 27. Kb1 {[%emt 0:00:58]} Rb7 {[%emt 0:00:29]} 28. Rxe3 {[%emt 0:00:21]} Be6 {[%emt 0:00:15]} 29. R1e2 {[%emt 0:01:34]} Nd7 {[%emt 0:00:34]} 30. Nh5 {[%emt 0:01:40]} Nf6 {[%emt 0:01:02]} 31. Nxf6+ {[%emt 0:00:51]} gxf6 {[%emt 0:00:03]} 32. Qxf6 {[%emt 0:00:11]} Qb5 {[%emt 0:01:10]} 33. Rxe6 {[%emt 0:02:14]} fxe6 {[%emt 0:00:16]} 34. Qxe6+ {[%emt 0:00:41]} Kh7 {[%emt 0:00:33]} 35. Qf5+ {[%emt 0:00:54]} Kg7 {[%emt 0:00:10]} 36. Qe5+ {[%emt 0:02:05]} Kh7 {[%emt 0:00:02]} 37. Qf6 {[%emt 0:01:59]} c3 {[%emt 0:01:32]} 38. Re7+ {[%emt 0:00:14]} Rxe7 {[%emt 0:00:04]} 39. Qxe7+ {[%emt 0:00:08]} Kg8 {[%emt 0:00:55]} 40. Qd8+ {[%emt 0:01:40]} Kh7 {[%emt 0:00:18]} 41. Qc7+ {[%emt 0:30:43]} Kg6 {[%emt 0:02:41]} 42. Qxc3 {[%emt 0:00:00]} Qf1+ {[%emt 0:03:56]} 43. Ka2 {[%emt 0:00:00]} Qxg2 {[%emt 0:01:44]} 44. Qd3+ {[%emt 0:00:00]} Kf6 {[%emt 0:03:37]} 45. Qxa6+ {[%emt 0:00:00]} Ke5 {[%emt 0:01:42]} 46. Qxh6 {[%emt 0:00:00]} Qxf3 {[%emt 0:01:16]} 47. Qg5+ {[%emt 0:00:00]} Ke6 {[%emt 0:01:22]} 48. Qg6+ {[%emt 0:00:00]} Kd7 {[%emt 0:00:18]} 49. h4 {[%emt 0:00:00]} Qe2 {[%emt 0:01:47]} 50. h5 {[%emt 0:00:00]} Qc4+ {[%emt 0:01:23]} 51. b3 {[%emt 0:00:00]} Qc3 {[%emt 0:00:30]} 52. h6 {[%emt 0:00:00]} d4 {[%emt 0:01:10]} 53. h7 {[%emt 0:00:00]} Qc8 {[%emt 0:02:45]} 54. Qf5+ {[%emt 0:00:00]} 1-0

[Event "1.Frauenbundesliga 2018-19"]
[Site "Germany"]
[Date "2019.01.13"]
[Round "6.5"]
[White "Kachiani-Gersinska, Ketino"]
[Black "Fuchs, Judith"]
[Result "1/2-1/2"]
[ECO "A05"]
[WhiteElo "2314"]
[BlackElo "2249"]
[Annotator "NA"]
[PlyCount "67"]
[EventDate "2018.10.27"]
[EventType "team-tourn"]
[EventCountry "GER"]
[SourceTitle "playchess.com"]
[Source "ChessBase"]
[SourceQuality "1"]
[TimeControl "40/5400+30:1800+30"]

1. Nf3 {[%emt 0:00:30]} Nf6 {[%emt 0:00:30]} 2. g3 {[%emt 0:00:30]} b5 {[%emt 0:00:00]} 3. Bg2 {[%emt 0:00:00]} Bb7 {[%emt 0:00:00]} 4. O-O {[%emt 0:00:00]} e6 {[%emt 0:00:30]} 5. d3 {[%emt 0:00:00]} Be7 {[%emt 0:00:00]} 6. e4 {[%emt 0:01:00]} d6 {[%emt 0:00:00]} 7. a4 {[%emt 0:01:30]} b4 {[%emt 0:00:30]} 8. Re1 {[%emt 0:00:30]} O-O {[%emt 0:00:30]} 9. Nbd2 {[%emt 0:00:30]} c5 {[%emt 0:02:30]} 10. a5 {[%emt 0:06:30]} Qc7 {[%emt 0:01:30]} 11. Nc4 {[%emt 0:00:30]} Nfd7 {[%emt 0:03:30]} 12. Bf4 {[%emt 0:03:30]} e5 {[%emt 0:10:30]} 13. Bd2 {[%emt 0:03:30]} Nc6 {[%emt 0:01:30]} 14. a6 {[%emt 0:13:30]} Bc8 {[%emt 0:00:30]} 15. Ne3 {[%emt 0:00:30]} Nb6 $14 {[%emt 0:01:30]} 16. Nd5 {[%emt 0:14:30]} Nxd5 {[%emt 0:03:30]} 17. exd5 {[%emt 0:00:30]} Nb8 {[%emt 0:03:30]} 18. Nxe5 {[%emt 0:04:30]} Bf6 {[%emt 0:01:30]} 19. Nc6 {[%emt 0:12:30]} Nxc6 {[%emt 0:04:30]} 20. dxc6 {[%emt 0:00:30]} Bxb2 {[%emt 0:02:30]} 21. Ra2 {[%emt 0:04:30]} Bf6 {[%emt 0:08:30]} 22. d4 {[%emt 0:01:30]} Bxd4 {[%emt 0:03:30]} 23. Bxb4 {[%emt 0:00:30]} Bxf2+ {[%emt 0:03:30]} 24. Kxf2 {[%emt 0:00:00]} cxb4 {[%emt 0:00:30]} 25. Qd4 {[%emt 0:01:00]} Be6 {[%emt 0:05:30]} 26. Ra4 {[%emt 0:00:30]} d5 {[%emt 0:01:30]} 27. Rxb4 {[%emt 0:00:00]} Qxc6 {[%emt 0:00:30]} 28. c4 {[%emt 0:01:00]} Qxa6 {[%emt 0:13:30]} 29. cxd5 {[%emt 0:00:30]} Rad8 {[%emt 0:03:30]} 30. Ra1 {[%emt 0:11:09]} Qc8 {[%emt 0:07:02]} 31. Rc4 {[%emt 0:05:20]} Qb8 {[%emt 0:01:02]} 32. Rb4 {[%emt 0:00:15]} Qc8 {[%emt 0:02:00]} 33. Rc4 {[%emt 0:00:43]} Qb8 {[%emt 0:02:15]} 34. Rb4 {[%emt 0:00:54]} 1/2-1/2

[Event "1.Frauenbundesliga 2018-19"]
[Site "Germany"]
[Date "2019.01.13"]
[Round "6.6"]
[White "Baciu, Diana"]
[Black "Arakhamia-Grant, Ketevan"]
[Result "0-1"]
[ECO "B31"]
[WhiteElo "2281"]
[BlackElo "2372"]
[Annotator "NA"]
[PlyCount "136"]
[EventDate "2018.10.27"]
[EventType "team-tourn"]
[EventCountry "GER"]
[SourceTitle "playchess.com"]
[Source "ChessBase"]
[SourceQuality "1"]
[TimeControl "40/5400+30:1800+30"]

1. e4 {[%emt 0:00:30]} c5 {[%emt 0:00:30]} 2. Nf3 {[%emt 0:00:00]} Nc6 {[%emt 0:00:00]} 3. Bb5 {[%emt 0:02:00]} g6 {[%emt 0:00:00]} 4. Bxc6 {[%emt 0:00:00]} dxc6 {[%emt 0:00:30]} 5. d3 {[%emt 0:00:00]} Bg7 {[%emt 0:00:00]} 6. h3 {[%emt 0:00:00]} Nf6 {[%emt 0:00:00]} 7. Nc3 {[%emt 0:02:00]} Nd7 {[%emt 0:00:30]} 8. Be3 {[%emt 0:00:30]} e5 {[%emt 0:00:00]} 9. Qd2 {[%emt 0:01:30]} h6 {[%emt 0:00:00]} 10. O-O {[%emt 0:04:30]} b6 {[%emt 0:00:30]} 11. Nh2 {[%emt 0:00:30]} Nf8 {[%emt 0:06:30]} 12. f4 {[%emt 0:01:30]} exf4 {[%emt 0:00:30]} 13. Bxf4 {[%emt 0:00:00]} Ne6 {[%emt 0:05:30]} 14. Be3 {[%emt 0:00:00]} Nd4 {[%emt 0:01:30]} 15. Nd1 {[%emt 0:06:30]} Qe7 {[%emt 0:10:30]} 16. Nf2 {[%emt 0:03:30]} Bb7 {[%emt 0:21:30]} 17. a4 {[%emt 0:15:30]} a5 {[%emt 0:00:30]} 18. Rad1 {[%emt 0:02:30]} h5 {[%emt 0:33:47]} 19. c3 {[%emt 0:07:30]} Ne6 {[%emt 0:00:10]} 20. Nf3 {[%emt 0:01:30]} O-O {[%emt 0:03:13]} 21. e5 {[%emt 0:06:30]} Rad8 {[%emt 0:04:41]} 22. Bh6 {[%emt 0:09:30]} c4 {[%emt 0:00:49]} 23. Bxg7 {[%emt 0:03:30]} Kxg7 {[%emt 0:00:04]} 24. Qe3 {[%emt 0:07:30]} cxd3 {[%emt 0:00:20]} 25. Qxb6 {[%emt 0:03:30]} c5 {[%emt 0:01:09]} 26. Rxd3 {[%emt 0:02:30]} Rxd3 {[%emt 0:02:57]} 27. Nxd3 {[%emt 0:00:00]} c4 {[%emt 0:00:18]} 28. Nde1 {[%emt 0:05:04]} Qc5+ {[%emt 0:03:31]} 29. Qxc5 {[%emt 0:00:03]} Nxc5 {[%emt 0:00:01]} 30. Nd2 {[%emt 0:06:51]} Nxa4 {[%emt 0:04:17]} 31. Nc2 {[%emt 0:00:02]} Nb6 32. Ne3 {[%emt 0:06:41]} Rc8 {[%emt 0:01:27]} 33. Rf4 {[%emt 0:00:46]} Nd5 {[%emt 0:00:13]} 34. Nxd5 {[%emt 0:00:06]} Bxd5 {[%emt 0:00:03]} 35. Rd4 {[%emt 0:01:31]} Be6 {[%emt 0:00:35]} 36. Kf2 {[%emt 0:02:44]} Rc5 {[%emt 0:00:31]} 37. Kf3 {[%emt 0:00:44]} g5 {[%emt 0:01:03]} 38. Ke4 {[%emt 0:00:46]} h4 {[%emt 0:00:44]} 39. Nf3 {[%emt 0:00:29]} Kg6 {[%emt 0:00:30]} 40. Rd6 {[%emt 0:00:28]} Rb5 {[%emt 0:00:33]} 41. Rd2 {[%emt 0:01:15]} a4 {[%emt 0:10:04]} 42. Nh2 {[%emt 0:11:21]} Bf5+ {[%emt 0:10:28]} 43. Kd4 {[%emt 0:00:15]} Bd3 {[%emt 0:01:03]} 44. Rf2 {[%emt 0:00:11]} Ra5 {[%emt 0:06:41]} 45. Ng4 {[%emt 0:01:19]} a3 {[%emt 0:03:40]} 46. bxa3 {[%emt 0:00:03]} Rxa3 {[%emt 0:00:00]} 47. Ne3 {[%emt 0:00:23]} Ra4 {[%emt 0:00:55]} 48. Nd5 {[%emt 0:01:22]} Ra7 {[%emt 0:00:34]} 49. Nb6 {[%emt 0:01:17]} Rc7 {[%emt 0:00:31]} 50. Kd5 {[%emt 0:02:18]} g4 {[%emt 0:00:30]} 51. hxg4 {[%emt 0:02:57]} Kg5 {[%emt 0:00:14]} 52. Kd6 {[%emt 0:01:51]} Rb7 {[%emt 0:00:06]} 53. Nd7 {[%emt 0:04:51]} Bg6 {[%emt 0:00:08]} 54. Nc5 {[%emt 0:07:01]} Rb1 {[%emt 0:00:21]} 55. Kd5 {[%emt 0:00:19]} Re1 {[%emt 0:00:52]} 56. e6 {[%emt 0:01:21]} fxe6+ {[%emt 0:00:16]} 57. Nxe6+ {[%emt 0:00:02]} Kxg4 {[%emt 0:00:28]} 58. Rf4+ {[%emt 0:00:56]} Kg3 {[%emt 0:00:21]} 59. Rf8 {[%emt 0:00:33]} Be4+ {[%emt 0:01:42]} 60. Kxc4 {[%emt 0:00:04]} Bxg2 {[%emt 0:00:19]} 61. Rg8+ {[%emt 0:00:37]} Kf2 {[%emt 0:00:29]} 62. Ng5 {[%emt 0:00:29]} Re5 {[%emt 0:01:10]} 63. Kd4 {[%emt 0:00:54]} Rd5+ {[%emt 0:00:05]} 64. Kc4 {[%emt 0:00:02]} Rf5 {[%emt 0:00:43]} 65. Kd4 {[%emt 0:00:39]} Rf4+ {[%emt 0:00:43]} 66. Kd3 {[%emt 0:00:47]} Rg4 {[%emt 0:00:34]} 67. Rf8+ {[%emt 0:00:28]} Kg3 {[%emt 0:00:15]} 68. Rf5 {[%emt 0:00:36]} h3 {[%emt 0:00:26]} 0-1